fUSD/lending_fUSD_20260614
["ID","MTS","AMOUNT","RATE_DAILY","PERIOD"]
[425037656,1781439057000,-500.0,0.00027671,8]
[425037644,1781439057000,-500.0,0.00027671,8]
[425037659,1781439057000,-500.00000001,0.00027671,8]
[425037649,1781439057000,-500.0,0.00027671,8]
[425037660,1781439057000,-500.0,0.00027671,8]
[425037648,1781439057000,-500.0,0.00027671,8]
[425037651,1781439057000,-500.0,0.00027671,8]
[425037650,1781439057000,-500.0,0.00027671,8]
[425037654,1781439057000,-500.0,0.00027671,8]
[425037652,1781439057000,-500.0,0.00027671,8]
[425037657,1781439057000,-500.0,0.00027671,8]
[425037653,1781439057000,-500.0,0.00027671,8]
[425037658,1781439057000,-500.0,0.00027671,8]
[425037655,1781439057000,-500.0,0.00027671,8]
[425037632,1781439057000,-500.0,0.00027671,8]
[425037636,1781439057000,-500.0,0.00027671,8]
[425037621,1781439057000,-500.0,0.00027671,8]
[425037602,1781439057000,-500.0,0.00027671,8]
[425037623,1781439057000,-500.0,0.00027671,8]
[425037661,1781439057000,-500.0,0.00027671,8]
[425037603,1781439057000,-500.0,0.00027671,8]
[425037604,1781439057000,-500.0,0.00027671,8]
[425037600,1781439057000,-500.0,0.00027671,8]
[425037599,1781439057000,-500.0,0.00027671,8]
[425037601,1781439057000,-500.0,0.00027671,8]
[425037598,1781439057000,-273.3167363,0.00027671,8]
[425037605,1781439057000,-500.0,0.00027671,8]
[425037608,1781439057000,-500.0,0.00027671,8]
[425037609,1781439057000,-500.0,0.00027671,8]
[425037614,1781439057000,-574.82,0.00027671,8]
[425037610,1781439057000,-500.0,0.00027671,8]
[425037615,1781439057000,-500.0,0.00027671,8]
[425037616,1781439057000,-500.0,0.00027671,8]
[425037622,1781439057000,-500.0,0.00027671,8]
[425037611,1781439057000,-500.0,0.00027671,8]
[425037607,1781439057000,-500.0,0.00027671,8]
[425037606,1781439057000,-500.0,0.00027671,8]
[425037617,1781439057000,-500.0,0.00027671,8]
[425037619,1781439057000,-500.0,0.00027671,8]
[425037613,1781439057000,-500.0,0.00027671,8]
[425037618,1781439057000,-500.0,0.00027671,8]
[425037626,1781439057000,-500.0,0.00027671,8]
[425037627,1781439057000,-500.0,0.00027671,8]
[425037630,1781439057000,-500.0,0.00027671,8]
[425037628,1781439057000,-500.0,0.00027671,8]
[425037631,1781439057000,-500.0,0.00027671,8]
[425037620,1781439057000,-500.0,0.00027671,8]
[425037629,1781439057000,-500.0,0.00027671,8]
[425037633,1781439057000,-500.0,0.00027671,8]
[425037612,1781439057000,-491.18,0.00027671,8]
[425037670,1781439057000,-500.0,0.00027671,8]
[425037728,1781439057000,-500.0,0.00027671,8]
[425037673,1781439057000,-500.0,0.00027671,8]
[425037708,1781439057000,-513.66,0.00027671,8]
[425037709,1781439057000,-500.0,0.00027671,8]
[425037701,1781439057000,-500.0,0.00027671,8]
[425037700,1781439057000,-500.0,0.00027671,8]
[425037702,1781439057000,-500.0,0.00027671,8]
[425037698,1781439057000,-500.0,0.00027671,8]
[425037703,1781439057000,-500.0,0.00027671,8]
[425037705,1781439057000,-500.0,0.00027671,8]
[425037706,1781439057000,-500.0,0.00027671,8]
[425037704,1781439057000,-500.0,0.00027671,8]
[425037707,1781439057000,-500.0,0.00027671,8]
[425037710,1781439057000,-500.0,0.00027671,8]
[425037712,1781439057000,-500.0,0.00027671,8]
[425037711,1781439057000,-500.0,0.00027671,8]
[425037719,1781439057000,-500.0,0.00027671,8]
[425037721,1781439057000,-491.52,0.00027671,8]
[425037717,1781439057000,-500.0,0.00027671,8]
[425037718,1781439057000,-500.0,0.00027671,8]
[425037715,1781439057000,-500.0,0.00027671,8]
[425037662,1781439057000,-500.0,0.00027671,8]
[425037722,1781439057000,-500.0,0.00027671,8]
[425037716,1781439057000,-500.0,0.00027671,8]
[425037720,1781439057000,-500.0,0.00027671,8]
[425037714,1781439057000,-500.0,0.00027671,8]
[425037723,1781439057000,-630.28,0.00027671,8]
[425037724,1781439057000,-500.0,0.00027671,8]
[425037726,1781439057000,-500.0,0.00027671,8]
[425037725,1781439057000,-500.0,0.00027671,8]
[425037727,1781439057000,-500.0,0.00027671,8]
[425037699,1781439057000,-500.0,0.00027671,8]
[425037691,1781439057000,-500.0,0.00027671,8]
[425037713,1781439057000,-500.0,0.00027671,8]
[425037690,1781439057000,-1538.17,0.00027671,8]
[425037693,1781439057000,-500.0,0.00027671,8]
[425037667,1781439057000,-326.8,0.00027671,8]
[425037663,1781439057000,-500.0,0.00027671,8]
[425037671,1781439057000,-500.0,0.00027671,8]
[425037665,1781439057000,-500.0,0.00027671,8]
[425037666,1781439057000,-500.0,0.00027671,8]
[425037664,1781439057000,-500.0,0.00027671,8]
[425037672,1781439057000,-582.18,0.00027671,8]
[425037669,1781439057000,-500.0,0.00027671,8]
[425037675,1781439057000,-500.0,0.00027671,8]
[425037685,1781439057000,-500.0,0.00027671,8]
[425037674,1781439057000,-500.0,0.00027671,8]
[425037682,1781439057000,-616.26,0.00027671,8]
[425037681,1781439057000,-500.0,0.00027671,8]
[425037676,1781439057000,-500.0,0.00027671,8]
[425037668,1781439057000,-500.0,0.00027671,8]
[425037679,1781439057000,-500.0,0.00027671,7]
[425037695,1781439057000,-536.28,0.00027671,8]
[425037683,1781439057000,-500.0,0.00027671,8]
[425037686,1781439057000,-500.0,0.00027671,8]
[425037697,1781439057000,-500.0,0.00027671,8]
[425037694,1781439057000,-500.0,0.00027671,8]
[425037692,1781439057000,-500.0,0.00027671,8]
[425037696,1781439057000,-500.0,0.00027671,8]
[425037688,1781439057000,-500.0,0.00027671,8]
[425037689,1781439057000,-623.22,0.00027671,8]
[425037678,1781439057000,-500.0,0.00027671,8]
[425037680,1781439057000,-500.0,0.00027671,8]
[425037677,1781439057000,-500.0,0.00027671,8]
[425037684,1781439057000,-500.0,0.00027671,8]
[425037687,1781439057000,-500.0,0.00027671,8]
[425037760,1781439058000,-500.0,0.00027671,8]
[425037755,1781439058000,-494.31,0.00027671,8]
[425037759,1781439058000,-500.0,0.00027671,8]
[425037751,1781439058000,-500.0,0.00027671,8]
[425037752,1781439058000,-500.0,0.00027671,8]
[425037749,1781439058000,-500.0,0.00027671,8]
[425037754,1781439058000,-629.3,0.00027671,8]
[425037753,1781439058000,-500.0,0.00027671,8]
[425037757,1781439058000,-500.0,0.00027671,8]
[425037766,1781439058000,-500.0,0.00027671,8]
[425037762,1781439058000,-500.0,0.00027671,8]
[425037764,1781439058000,-151.0,0.00027671,7]
[425037765,1781439058000,-500.0,0.00027671,8]
[425037767,1781439058000,-630.6,0.00027671,8]
[425037768,1781439058000,-500.0,0.00027671,8]
[425037769,1781439058000,-500.0,0.00027671,8]
[425037771,1781439058000,-500.0,0.00027671,8]
[425037770,1781439058000,-500.0,0.00027671,8]
[425037761,1781439058000,-500.0,0.00027671,8]
[425037756,1781439058000,-500.0,0.00027671,8]
[425037758,1781439058000,-500.0,0.00027671,8]
[425037730,1781439058000,-500.0,0.00027671,8]
[425037746,1781439058000,-500.0,0.00027671,8]
[425037774,1781439058000,-500.0,0.00027671,8]
[425037731,1781439058000,-577.5,0.00027671,8]
[425037734,1781439058000,-500.0,0.00027671,8]
[425037732,1781439058000,-500.0,0.00027671,8]
[425037733,1781439058000,-500.0,0.00027671,8]
[425037735,1781439058000,-500.0,0.00027671,8]
[425037729,1781439058000,-500.0,0.00027671,8]
[425037736,1781439058000,-500.0,0.00027671,8]
[425037739,1781439058000,-500.0,0.00027671,8]
[425037738,1781439058000,-500.0,0.00027671,8]
[425037748,1781439058000,-505.4,0.00027671,8]
[425037744,1781439058000,-500.0,0.00027671,8]
[425037737,1781439058000,-500.0,0.00027671,8]
[425037747,1781439058000,-500.0,0.00027671,8]
[425037740,1781439058000,-535.68,0.00027671,8]
[425037741,1781439058000,-500.0,0.00027671,8]
[425037743,1781439058000,-500.0,0.00027671,8]
[425037742,1781439058000,-500.0,0.00027671,8]
[425037745,1781439058000,-500.0,0.00027671,8]
[425037750,1781439058000,-500.0,0.00027671,8]
[425037776,1781439058000,-500.0,0.00027671,8]
[425037763,1781439058000,-514.6,0.00027671,8]
[425037773,1781439058000,-500.0,0.00027671,8]
[425037803,1781439058000,-737.45,0.00027671,8]
[425037801,1781439058000,-500.0,0.00027671,8]
[425037798,1781439058000,-500.0,0.00027671,8]
[425037799,1781439058000,-151.0,0.00027671,7]
[425037800,1781439058000,-500.0,0.00027671,8]
[425037804,1781439058000,-500.0,0.00027671,8]
[425037806,1781439058000,-500.0,0.00027671,8]
[425037807,1781439058000,-500.0,0.00027671,8]
[425037805,1781439058000,-500.0,0.00027671,8]
[425037802,1781439058000,-500.0,0.00027671,8]
[425037811,1781439058000,-500.0,0.00027671,8]
[425037812,1781439058000,-500.0,0.00027671,8]
[425037809,1781439058000,-500.0,0.00027671,8]
[425037808,1781439058000,-500.0,0.00027671,8]
[425037815,1781439058000,-158.83,0.00027671,8]
[425037813,1781439058000,-473.6,0.00027671,8]
[425037817,1781439058000,-500.0,0.00027671,8]
[425037818,1781439058000,-500.0,0.00027671,8]
[425037816,1781439058000,-599.88,0.00027671,8]
[425037772,1781439058000,-500.0,0.00027671,8]
[425037810,1781439058000,-500.0,0.00027671,8]
[425037796,1781439058000,-500.0,0.00027671,8]
[425037814,1781439058000,-500.0,0.00027671,8]
[425037793,1781439058000,-151.0,0.00027671,7]
[425037797,1781439058000,-151.0,0.00027671,7]
[425037778,1781439058000,-500.0,0.00027671,8]
[425037775,1781439058000,-538.41,0.00027671,8]
[425037777,1781439058000,-500.0,0.00027671,8]
[425037781,1781439058000,-500.0,0.00027671,8]
[425037782,1781439058000,-500.0,0.00027671,8]
[425037779,1781439058000,-500.0,0.00027671,8]
[425037780,1781439058000,-585.94,0.00027671,8]
[425037784,1781439058000,-249.52,0.00027671,8]
[425037783,1781439058000,-500.0,0.00027671,8]
[425037819,1781439058000,-500.0,0.00027671,8]
[425037787,1781439058000,-500.0,0.00027671,8]
[425037786,1781439058000,-500.0,0.00027671,8]
[425037790,1781439058000,-500.0,0.00027671,8]
[425037788,1781439058000,-500.0,0.00027671,8]
[425037789,1781439058000,-500.0,0.00027671,8]
[425037792,1781439058000,-500.0,0.00027671,8]
[425037791,1781439058000,-589.95,0.00027671,8]
[425037795,1781439058000,-500.0,0.00027671,8]
[425037785,1781439058000,-500.0,0.00027671,8]
[425037794,1781439058000,-296.66,0.00027671,8]
[425037849,1781439059000,-649.78,0.00027671,8]
[425037854,1781439059000,-500.0,0.00027671,8]
[425037856,1781439059000,-500.0,0.00027671,8]
[425037857,1781439059000,-500.0,0.00027671,8]
[425037852,1781439059000,-500.0,0.00027671,8]
[425037859,1781439059000,-500.0,0.00027671,8]
[425037851,1781439059000,-500.0,0.00027671,8]
[425037850,1781439059000,-500.0,0.00027671,8]
[425037860,1781439059000,-500.0,0.00027671,8]
[425037855,1781439059000,-274.03,0.00027671,8]
[425037853,1781439059000,-500.0,0.00027671,8]
[425037863,1781439059000,-500.0,0.00027671,8]
[425037877,1781439059000,-500.0,0.00027671,8]
[425037862,1781439059000,-500.0,0.00027671,8]
[425037864,1781439059000,-460.41616865,0.00027671,8]
[425037865,1781439059000,-500.0,0.00027671,8]
[425037866,1781439059000,-500.0,0.00027671,8]
[425037867,1781439059000,-500.0,0.00027671,8]
[425037868,1781439059000,-500.0,0.00027671,8]
[425037871,1781439059000,-500.0,0.00027671,8]
[425037869,1781439059000,-500.0,0.00027671,8]
[425037875,1781439059000,-500.0,0.00027671,8]
[425037879,1781439059000,-500.0,0.00027671,8]
[425037876,1781439059000,-500.0,0.00027671,8]
[425037858,1781439059000,-500.0,0.00027671,8]
[425037861,1781439059000,-500.0,0.00027671,8]
[425037848,1781439059000,-448.7,0.00027671,8]
[425037825,1781439059000,-500.0,0.00027671,8]
[425037847,1781439059000,-500.0,0.00027671,8]
[425037827,1781439059000,-500.0,0.00027671,8]
[425037820,1781439059000,-500.0,0.00027671,8]
[425037824,1781439059000,-500.0,0.00027671,8]
[425037821,1781439059000,-500.0,0.00027671,8]
[425037826,1781439059000,-1000.0,0.00027671,8]
[425037878,1781439059000,-357.62,0.00027671,8]
[425037823,1781439059000,-500.0,0.00027671,8]
[425037822,1781439059000,-500.0,0.00027671,8]
[425037828,1781439059000,-500.0,0.00027671,8]
[425037830,1781439059000,-151.0,0.00027671,7]
[425037836,1781439059000,-633.48,0.00027671,8]
[425037833,1781439059000,-500.0,0.00027671,8]
[425037844,1781439059000,-500.0,0.00027671,8]
[425037832,1781439059000,-500.0,0.00027671,8]
[425037829,1781439059000,-500.0,0.00027671,8]
[425037838,1781439059000,-151.0,0.00027671,7]
[425037837,1781439059000,-240.114956,0.00027671,7]
[425037834,1781439059000,-500.0,0.00027671,8]
[425037835,1781439059000,-500.0,0.00027671,8]
[425037840,1781439059000,-500.0,0.00027671,8]
[425037839,1781439059000,-500.0,0.00027671,8]
[425037842,1781439059000,-500.0,0.00027671,8]
[425037845,1781439059000,-223.45,0.00027671,8]
[425037841,1781439059000,-500.0,0.00027671,8]
[425037843,1781439059000,-500.0,0.00027671,8]
[425037846,1781439059000,-500.0,0.00027671,8]
[425037831,1781439059000,-500.0,0.00027671,8]
[425037872,1781439059000,-500.0,0.00027671,8]
[425037870,1781439059000,-500.0,0.00027671,8]
[425037874,1781439059000,-500.0,0.00027671,8]
[425037911,1781439059000,-234.54,0.00027702,30]
[425037921,1781439059000,-1307.3,0.00027711,7]
[425037910,1781439059000,-300.0,0.000277,10]
[425037912,1781439059000,-236.03,0.00027702,30]
[425037914,1781439059000,-283.9944027,0.00027703,2]
[425037913,1781439059000,-270.48006455,0.00027703,2]
[425037916,1781439059000,-187.78006524,0.00027703,2]
[425037915,1781439059000,-156.67033146,0.00027703,2]
[425037920,1781439059000,-960.17,0.00027711,7]
[425037917,1781439059000,-158.64924475,0.00027703,2]
[425037919,1781439059000,-1113.48,0.00027711,7]
[425037924,1781439059000,-1228.57,0.00027711,7]
[425037907,1781439059000,-234.54,0.00027672,7]
[425037922,1781439059000,-957.27,0.00027711,7]
[425037925,1781439059000,-234.54,0.00027733,2]
[425037927,1781439059000,-204.0,0.00027733,2]
[425037929,1781439059000,-236.03,0.00027763,7]
[425037930,1781439059000,-234.54,0.00027794,30]
[425037931,1781439059000,-236.03,0.00027794,30]
[425037932,1781439059000,-2000.0,0.0002782,7]
[425037933,1781439059000,-234.54,0.00027824,2]
[425037928,1781439059000,-234.54,0.00027763,7]
[425037923,1781439059000,-1138.27,0.00027711,7]
[425037935,1781439059000,-16633.03641933,0.00027845,2]
[425037934,1781439059000,-236.03,0.00027824,2]
[425037873,1781439059000,-500.0,0.00027671,8]
[425037926,1781439059000,-236.03,0.00027733,2]
[425037902,1781439059000,-151.0,0.00027671,7]
[425037918,1781439059000,-151.0,0.00027703,2]
[425037903,1781439059000,-500.0,0.00027671,8]
[425037880,1781439059000,-500.0,0.00027671,8]
[425037906,1781439059000,-160.6914,0.00027671,7]
[425037881,1781439059000,-500.0,0.00027671,8]
[425037882,1781439059000,-334.6,0.00027671,8]
[425037883,1781439059000,-500.0,0.00027671,8]
[425037884,1781439059000,-500.0,0.00027671,8]
[425037886,1781439059000,-500.0,0.00027671,8]
[425037885,1781439059000,-2000.0,0.00027671,2]
[425037887,1781439059000,-500.0,0.00027671,8]
[425037897,1781439059000,-500.0,0.00027671,8]
[425037889,1781439059000,-500.0,0.00027671,8]
[425037888,1781439059000,-500.0,0.00027671,8]
[425037890,1781439059000,-500.0,0.00027671,8]
[425037896,1781439059000,-500.0,0.00027671,8]
[425037904,1781439059000,-151.0,0.00027671,7]
[425037909,1781439059000,-150.0,0.000277,30]
[425037908,1781439059000,-236.03,0.00027672,7]
[425037891,1781439059000,-500.0,0.00027671,8]
[425037905,1781439059000,-151.0,0.00027671,7]
[425037901,1781439059000,-461.54,0.00027671,8]
[425037899,1781439059000,-500.0,0.00027671,8]
[425037900,1781439059000,-500.0,0.00027671,8]
[425037898,1781439059000,-500.0,0.00027671,8]
[425037893,1781439059000,-500.0,0.00027671,8]
[425037895,1781439059000,-500.0,0.00027671,8]
[425037892,1781439059000,-500.0,0.00027671,8]
[425037894,1781439059000,-618.72,0.00027671,8]
[425037976,1781439060000,-267.91,0.00027945,8]
[425037984,1781439060000,-500.0,0.00027945,8]
[425037978,1781439060000,-500.0,0.00027945,8]
[425037983,1781439060000,-599.49,0.00027945,8]
[425037982,1781439060000,-500.0,0.00027945,8]
[425037966,1781439060000,-500.0,0.00027945,8]
[425037972,1781439060000,-500.0,0.00027945,8]
[425037968,1781439060000,-488.35,0.00027945,8]
[425037969,1781439060000,-492.97,0.00027945,8]
[425037967,1781439060000,-500.0,0.00027945,8]
[425037980,1781439060000,-258.82,0.00027945,8]
[425037974,1781439060000,-500.0,0.00027945,8]
[425037973,1781439060000,-633.28,0.00027945,8]
[425037990,1781439060000,-500.0,0.00027945,8]
[425037975,1781439060000,-356.84,0.00027945,8]
[425037979,1781439060000,-500.0,0.00027945,8]
[425037981,1781439060000,-500.0,0.00027945,8]
[425037986,1781439060000,-500.0,0.00027945,8]
[425037989,1781439060000,-500.0,0.00027945,8]
[425037991,1781439060000,-553.49,0.00027945,8]
[425037988,1781439060000,-500.0,0.00027945,8]
[425037987,1781439060000,-500.0,0.00027945,8]
[425037985,1781439060000,-500.0,0.00027945,8]
[425037997,1781439060000,-500.0,0.00027945,8]
[425037996,1781439060000,-615.64,0.00027945,8]
[425037995,1781439060000,-442.04,0.00027945,8]
[425037965,1781439060000,-500.0,0.00027945,8]
[425037977,1781439060000,-500.0,0.00027945,8]
[425037963,1781439060000,-535.4,0.00027945,8]
[425037940,1781439060000,-1113.48,0.00027872,2]
[425037961,1781439060000,-506.29,0.00027945,8]
[425037993,1781439060000,-500.0,0.00027945,8]
[425037941,1781439060000,-960.17,0.00027872,2]
[425037942,1781439060000,-1307.3,0.00027872,2]
[425037944,1781439060000,-349.46918583,0.00027872,2]
[425037945,1781439060000,-957.27,0.00027872,2]
[425037938,1781439060000,-236.03,0.00027855,7]
[425037936,1781439060000,-213.96765886,0.00027845,2]
[425037943,1781439060000,-1000.0,0.00027872,2]
[425037937,1781439060000,-234.54,0.00027855,7]
[425037939,1781439060000,-151.0,0.00027872,2]
[425037946,1781439060000,-1138.27,0.00027872,2]
[425037957,1781439060000,-471.09,0.00027945,8]
[425037947,1781439060000,-1228.57,0.00027872,2]
[425037964,1781439060000,-286.88,0.00027945,8]
[425037958,1781439060000,-615.21,0.00027945,8]
[425037954,1781439060000,-500.0,0.0002793,15]
[425037949,1781439060000,-236.03,0.00027885,30]
[425037950,1781439060000,-234.54,0.00027916,2]
[425037948,1781439060000,-234.54,0.00027885,30]
[425037953,1781439060000,-614.97,0.00027927,120]
[425037955,1781439060000,-534.39,0.00027944,7]
[425037952,1781439060000,-2618.0,0.00027918,2]
[425037956,1781439060000,-322.89,0.00027945,8]
[425037960,1781439060000,-500.0,0.00027945,8]
[425037962,1781439060000,-500.0,0.00027945,8]
[425037959,1781439060000,-500.0,0.00027945,8]
[425037970,1781439060000,-500.0,0.00027945,8]
[425037971,1781439060000,-237.19,0.00027945,8]
[425037951,1781439060000,-236.03,0.00027916,2]
[425037992,1781439060000,-295.96,0.00027945,8]
[425038048,1781439060000,-500.0,0.00027945,8]
[425037998,1781439060000,-521.7,0.00027945,8]
[425038031,1781439060000,-530.92,0.00027945,8]
[425038032,1781439060000,-202.4,0.00027945,8]
[425038033,1781439060000,-500.0,0.00027945,8]
[425038035,1781439060000,-500.0,0.00027945,8]
[425038036,1781439060000,-500.0,0.00027945,8]
[425038045,1781439060000,-500.0,0.00027945,8]
[425038034,1781439060000,-500.0,0.00027945,8]
[425038038,1781439060000,-500.0,0.00027945,8]
[425038037,1781439060000,-500.0,0.00027945,8]
[425038039,1781439060000,-500.0,0.00027945,8]
[425038041,1781439060000,-643.27,0.00027945,8]
[425038043,1781439060000,-539.7,0.00027945,8]
[425038042,1781439060000,-500.0,0.00027945,8]
[425038040,1781439060000,-170.06,0.00027945,8]
[425038044,1781439060000,-500.0,0.00027945,8]
[425038046,1781439060000,-500.0,0.00027945,8]
[425038047,1781439060000,-500.0,0.00027945,8]
[425038049,1781439060000,-500.0,0.00027945,8]
[425038051,1781439060000,-675.07,0.00027945,8]
[425038050,1781439060000,-500.0,0.00027945,8]
[425038052,1781439060000,-500.0,0.00027945,8]
[425038055,1781439060000,-500.0,0.00027945,8]
[425038054,1781439060000,-500.0,0.00027945,8]
[425038056,1781439060000,-626.2,0.00027945,8]
[425038057,1781439060000,-500.0,0.00027945,8]
[425037994,1781439060000,-500.0,0.00027945,8]
[425038058,1781439060000,-212.61,0.00027945,8]
[425038026,1781439060000,-500.0,0.00027945,8]
[425038024,1781439060000,-507.4,0.00027945,8]
[425038053,1781439060000,-253.4,0.00027945,8]
[425038029,1781439060000,-500.0,0.00027945,8]
[425038025,1781439060000,-500.0,0.00027945,8]
[425038000,1781439060000,-500.0,0.00027945,8]
[425038002,1781439060000,-264.64,0.00027945,8]
[425038006,1781439060000,-500.0,0.00027945,8]
[425038008,1781439060000,-500.0,0.00027945,8]
[425038004,1781439060000,-434.49,0.00027945,8]
[425038005,1781439060000,-477.01,0.00027945,8]
[425037999,1781439060000,-500.0,0.00027945,8]
[425038001,1781439060000,-500.0,0.00027945,8]
[425038007,1781439060000,-500.0,0.00027945,8]
[425038010,1781439060000,-500.0,0.00027945,8]
[425038020,1781439060000,-248.75,0.00027945,8]
[425038011,1781439060000,-500.0,0.00027945,8]
[425038014,1781439060000,-558.94,0.00027945,8]
[425038003,1781439060000,-475.92,0.00027945,8]
[425038012,1781439060000,-500.0,0.00027945,8]
[425038009,1781439060000,-500.0,0.00027945,8]
[425038022,1781439060000,-500.0,0.00027945,8]
[425038027,1781439060000,-500.0,0.00027945,8]
[425038028,1781439060000,-597.46,0.00027945,8]
[425038023,1781439060000,-354.7,0.00027945,8]
[425038018,1781439060000,-500.0,0.00027945,8]
[425038030,1781439060000,-500.0,0.00027945,8]
[425038017,1781439060000,-595.47,0.00027945,8]
[425038016,1781439060000,-608.28,0.00027945,8]
[425038015,1781439060000,-500.0,0.00027945,8]
[425038013,1781439060000,-500.0,0.00027945,8]
[425038021,1781439060000,-500.0,0.00027945,8]
[425038019,1781439060000,-500.0,0.00027945,8]
[425038098,1781439061000,-159.62,0.00027945,8]
[425038106,1781439061000,-500.0,0.00027945,8]
[425038099,1781439061000,-166.54,0.00027945,8]
[425038097,1781439061000,-179.96,0.00027945,8]
[425038091,1781439061000,-500.0,0.00027945,8]
[425038093,1781439061000,-500.0,0.00027945,8]
[425038092,1781439061000,-500.0,0.00027945,8]
[425038090,1781439061000,-500.0,0.00027945,8]
[425038096,1781439061000,-295.99,0.00027945,8]
[425038087,1781439061000,-259.68,0.00027945,8]
[425038095,1781439061000,-646.14,0.00027945,8]
[425038088,1781439061000,-568.53,0.00027945,8]
[425038108,1781439061000,-500.0,0.00027945,8]
[425038104,1781439061000,-500.0,0.00027945,8]
[425038101,1781439061000,-500.0,0.00027945,8]
[425038100,1781439061000,-525.12,0.00027945,8]
[425038102,1781439061000,-500.0,0.00027945,8]
[425038105,1781439061000,-500.0,0.00027945,8]
[425038118,1781439061000,-500.0,0.00027945,8]
[425038116,1781439061000,-500.0,0.00027945,8]
[425038117,1781439061000,-500.0,0.00027945,8]
[425038109,1781439061000,-500.0,0.00027945,8]
[425038112,1781439061000,-500.0,0.00027945,8]
[425038107,1781439061000,-500.0,0.00027945,8]
[425038086,1781439061000,-500.0,0.00027945,8]
[425038110,1781439061000,-500.0,0.00027945,8]
[425038103,1781439061000,-500.0,0.00027945,8]
[425038085,1781439061000,-188.61,0.00027945,8]
[425038074,1781439061000,-225.04,0.00027945,8]
[425038083,1781439061000,-500.0,0.00027945,8]
[425038111,1781439061000,-500.0,0.00027945,8]
[425038062,1781439061000,-500.0,0.00027945,8]
[425038063,1781439061000,-631.77,0.00027945,8]
[425038059,1781439061000,-500.0,0.00027945,8]
[425038061,1781439061000,-500.0,0.00027945,8]
[425038066,1781439061000,-163.17,0.00027945,8]
[425038069,1781439061000,-500.0,0.00027945,8]
[425038060,1781439061000,-509.36,0.00027945,8]
[425038067,1781439061000,-500.0,0.00027945,8]
[425038065,1781439061000,-500.0,0.00027945,2]
[425038068,1781439061000,-339.46,0.00027945,8]
[425038064,1781439061000,-370.23,0.00027945,8]
[425038089,1781439061000,-318.05,0.00027945,8]
[425038070,1781439061000,-203.27,0.00027945,8]
[425038078,1781439061000,-500.0,0.00027945,8]
[425038076,1781439061000,-500.0,0.00027945,8]
[425038073,1781439061000,-500.0,0.00027945,8]
[425038077,1781439061000,-378.62,0.00027945,8]
[425038079,1781439061000,-500.0,0.00027945,8]
[425038071,1781439061000,-500.0,0.00027945,8]
[425038082,1781439061000,-500.0,0.00027945,8]
[425038081,1781439061000,-500.0,0.00027945,8]
[425038075,1781439061000,-628.84,0.00027945,8]